[Event "Slovakia Open 2022"]
[Site "Bratislava"]
[Date "2022.10.02"]
[Round "8.16"]
[White "Rosol, Philip"]
[Black "Rosol, Alexander"]
[Result "1-0"]
[ECO "A50"]
[WhiteElo "1885"]
[BlackElo "2041"]
[Annotator "TA"]
[PlyCount "69"]
[EventDate "2022.09.30"]
[EventCountry "SVK"]
[SourceTitle "playchess.com"]
[Source "ChessBase"]
[SourceQuality "1"]
[TimeControl "2700+10"]

{[%evp 9,68,15,66,66,73,67,81,83,108,71,83,60,70,26,34,-4,59,54,156,50,105,94,92,0,74,27,25,26,2,0,133,100,104,91,140,102,314,305,297,298,470,411,636,390,3726,3543,2151,642,1576,3117,2913,2720,2278,2259,2277,2364,29995,29996,29998,29999,29999]} 1. d4 {[%emt 0:00:08]} Nf6 {[%emt 0:00:04]} 2. c4 {[%emt 0:00:01]} b6 {[%emt 0:00:04]} 3. Nc3 {[%emt 0:00:06]} Bb7 {[%emt 0:00:02]} 4. Bg5 {[%emt 0:00:21]} g6 {[%emt 0:01:14]} 5. f3 {[%emt 0:01:06]} Bg7 {[%emt 0:00:10]} ({Black should try} 5... d5 $11) 6. e4 $14 {[%emt 0:00:00] A50: Queen's Fianchetto Defence (1 d4 Nf6 2 c4 b6).} d6 {[%emt 0:00:02]} 7. Qd2 {[%emt 0:00:27]} c5 {[%emt 0:00:47]} 8. d5 {[%emt 0:00:27] [#] White is better.} a6 $146 {[%emt 0:00:45]} ({Predecessor:} 8... h6 9. Be3 Nbd7 10. Nh3 a6 11. Nf2 b5 12. cxb5 Qa5 13. a4 h5 14. Ra3 O-O {1-0 (38) Horvath,J (2531)-De Santis,A (2324) Civitanova Marche 2012}) 9. Bd3 {[%emt 0:00:46]} O-O {[%emt 0:00:43]} 10. h4 {[%emt 0:02:04][%cal Bh2h4,Bh4h5][%mdl 32]} b5 {[%emt 0:00:38]} 11. g4 {[%emt 0:01:08] White is more active.} Nbd7 {[%emt 0:02:58]} 12. h5 {[%emt 0:01:47]} bxc4 {[%emt 0:00:22]} (12... Ne5 $1 $11) 13. Bxc4 {[%emt 0:04:53]} Nb6 {[%emt 0:00:12]} (13... a5 $14) 14. b3 {[%emt 0:02:49]} ({Better is} 14. Be2 $1 $16) 14... Nfd7 {[%emt 0:03:24]} (14... Nxc4 $14 15. bxc4 Qa5) 15. hxg6 {[%emt 0:02:56]} fxg6 {[%emt 0:00:04]} 16. Bh6 {[%emt 0:04:01]} ({White should play} 16. Be2 $1 $16) 16... Bh8 {[%emt 0:00:23]} (16... Nxc4 $11 17. bxc4 Rf7) 17. f4 {[%emt 0:02:45]} (17. Bxf8 $16 {Strongly threatening Bh6.} Qxf8 18. Bf1) 17... Nxc4 {[%emt 0:02:16]} 18. bxc4 {[%emt 0:00:08]} Qa5 {[%emt 0:00:01]} 19. Rc1 {[%emt 0:03:49]} Nb6 {[%emt 0:00:19]} (19... Bxc3 $11 20. Qxc3 Qxc3+ 21. Rxc3 Rfe8) 20. Qd3 {[%emt 0:01:20]} Na4 {[%emt 0:00:32][%cal Ra4c3]} 21. Nge2 {[%emt 0:00:33]} Rf7 {[%emt 0:00:34] [#]} (21... Nxc3 $142 22. Nxc3 Rf7) 22. f5 $1 $16 {[%emt 0:02:50]} g5 {[%emt 0:03:19] This move loses the game for Black.} (22... Be5 $16) 23. Rh5 $18 {[%emt 0:01:31]} ({Don't play} 23. Bxg5 $6 Bc8 24. Bd2 Nxc3 25. Bxc3 (25. Nxc3 Be5 $18) 25... Bxc3+ 26. Nxc3 (26. Qxc3 Qxc3+ 27. Rxc3 a5 $18) 26... Rb8 $18) 23... Bf6 {[%emt 0:00:03]} 24. Bxg5 {[%emt 0:00:24]} Bxc3+ {[%emt 0:01:15]} (24... Be5 $142 25. Kf2 Nxc3) 25. Nxc3 {[%emt 0:00:07] Black must now prevent Bd2.} Nxc3 {[%emt 0:00:03]} (25... Qb4 $142 26. Kf2 Nxc3 27. Rxc3 Qb2+ 28. Kf3 Bc8) 26. Qxc3 {[%emt 0:00:49]} Qxa2 {[%emt 0:00:07]} (26... Qxc3+ 27. Rxc3 Rg7) 27. Bh6 {[%emt 0:01:02] Threatening mate with Rg5+.} Rf6 {[%emt 0:01:08]} 28. g5 {[%emt 0:01:18]} (28. Rg5+ $142 Kf7 {[#]} 29. e5 $1) 28... Qg2 {[%emt 0:00:56]} 29. gxf6 {[%emt 0:00:14] White threatens Rg5+ and mate.} Kf7 {[%emt 0:00:25]} 30. Rg5 {[%emt 0:01:42][%cal Bh5g5,Bg5g7,Bg7e7][%mdl 32]} Qh1+ {[%emt 0:00:41]} 31. Ke2 {[%emt 0:00:18]} Qh2+ {[%emt 0:00:31]} 32. Kd3 {[%emt 0:00:23] Rg7+ would kill now.} Bc8 {[%emt 0:00:46]} 33. Rg7+ {[%emt 0:00:11] White mates.} Ke8 {[%emt 0:00:09]} 34. Rxe7+ {[%emt 0:00:05]} Kd8 {[%emt 0:00:02]} 35. Qa5# {[%emt 0:00:04] Weighted Error Value: White=0.59/Black=0.78} 1-0

[Event "Slovakia Open 2022"]
[Site "Bratislava"]
[Date "2022.10.02"]
[Round "8.17"]
[White "Mikulas, Dusan"]
[Black "Novosadova, Kristyna"]
[Result "0-1"]
[ECO "C47"]
[WhiteElo "2047"]
[BlackElo "2151"]
[Annotator "TA"]
[PlyCount "100"]
[EventDate "2022.09.30"]
[EventCountry "SVK"]
[SourceTitle "playchess.com"]
[Source "ChessBase"]
[SourceQuality "1"]
[TimeControl "2700+10"]

{[%evp 23,100,6,25,19,111,0,0,-17,-17,-6,0,0,0,-20,-19,-31,-5,-5,-4,-4,-3,-4,0,0,0,-16,-9,-183,-33,-33,-43,-44,-26,-39,-16,-25,-9,-163,-32,-35,-29,-38,-28,-52,-44,-156,-53,-60,-60,-196,-206,-201,-187,-252,-247,-413,-372,-385,-358,-559,-549,-658,-509,-681,-666,-12833,-12834,-12836,-12836,-12839,-12839,-12839,-12840,-12842,-12842,-12842,-12843,-12843,-12843]} 1. e4 {[%emt 0:00:16]} e5 {[%emt 0:05:23]} 2. Nf3 {[%emt 0:00:03]} Nc6 {[%emt 0:00:02]} 3. Nc3 {[%emt 0:00:14]} Nf6 {[%emt 0:00:04]} 4. d4 {[%emt 0:00:14]} exd4 {[%emt 0:00:09]} 5. Nxd4 {[%emt 0:00:02]} Bb4 {[%emt 0:00:03]} 6. Nxc6 {[%emt 0:00:05]} bxc6 {[%emt 0:00:05]} 7. Bd3 {[%emt 0:00:11]} d5 {[%emt 0:03:13]} 8. exd5 {[%emt 0:00:03]} cxd5 {[%emt 0:00:08]} 9. O-O {[%emt 0:00:04]} O-O {[%emt 0:00:25]} 10. Bg5 {[%emt 0:00:52]} c6 {[%emt 0:00:16]} 11. Qf3 {[%emt 0:01:37]} Be7 {[%emt 0:01:02] 11...h6 is the modern continuation.} 12. h3 {[%emt 0:01:04]} Rb8 {[%emt 0:00:20]} 13. Rab1 {[%emt 0:01:03] C47: Scotch Four Knights and Four Knights with 4 g3.} h6 {[%emt 0:01:07] [#]} (13... Bd6 $11 {remains equal.}) 14. Bf4 {[%emt 0:01:57]} ({White has to play} 14. Bxh6 $1 $16 {[%mdl 512] Black must now prevent Qg3.} Bd6 15. Be3) 14... Bd6 $11 {[%emt 0:00:02]} 15. Ne2 {[%emt 0:03:13] The position is equal.} c5 {[%emt 0:00:16] [#]} 16. Rfd1 $146 {[%emt 0:02:05]} ({Predecessor:} 16. c3 Be6 17. Rfe1 Re8 18. Bxd6 Qxd6 19. Qf4 Qxf4 20. Nxf4 a5 21. Bc2 Bd7 22. Rxe8+ Rxe8 {1-0 (49) Llorente Zaro,A (2224)-Antoli Royo,J (2279) Zaragoza 2003}) 16... Bb7 {[%emt 0:01:00]} 17. Bxd6 {[%emt 0:04:24]} Qxd6 {[%emt 0:00:04]} 18. Ng3 {[%emt 0:04:14]} d4 {[%emt 0:01:30]} 19. Ne4 {[%emt 0:01:11]} Nxe4 {[%emt 0:00:08]} 20. Bxe4 {[%emt 0:00:02]} Bxe4 {[%emt 0:00:13]} 21. Qxe4 {[%emt 0:00:01]} Rfe8 {[%emt 0:00:22]} 22. Qd3 {[%emt 0:00:11]} Qe6 {[%emt 0:00:45]} 23. b3 {[%emt 0:01:22]} Rb7 {[%emt 0:00:50]} 24. Kf1 {[%emt 0:03:39]} Rbe7 {[%emt 0:00:11]} 25. Qd2 $2 {[%emt 0:00:29]} (25. Kg1 $11) 25... Qa6+ {[%emt 0:00:21]} (25... Qd6 $1 $19 {[%cal Rd6h2] Strongly threatening ...Qh2.} 26. Kg1 Re2) 26. Qd3 $1 $15 {[%emt 0:02:04]} Qd6 {[%emt 0:01:21] And now ...Qh2 would win.} 27. Qg3 {[%emt 0:01:10] Against Qh2} Qe6 {[%emt 0:00:33] ...Qe2+ is the strong threat.} 28. Qd3 {[%emt 0:01:25]} Qe5 {[%emt 0:00:09] Threatens to win with ...Qh2.} 29. Kg1 {[%emt 0:00:54] Inhibits Qh2+.} Qf6 {[%emt 0:01:18]} 30. Kf1 $2 {[%emt 0:02:24] Against Re2} (30. Rf1 $11 {and White stays safe.}) 30... Qf4 $40 {[%emt 0:00:36][%mdl 128] Black mounts an attack.} (30... Re3 $1 $19 {[%cal Re3d3]} 31. Re1 Rxd3 32. Rxe8+ Kh7 33. cxd3 Qa6) 31. Qg3 {[%emt 0:00:45]} Qxg3 {[%emt 0:00:56]} (31... Qf5 {with more complications.} 32. Qd3 Qd5 33. c3 Qd6) 32. fxg3 {[%emt 0:00:10][%mdl 4096] Endgame KRR-KRR} Re3 {[%emt 0:00:14]} 33. Re1 {[%emt 0:00:08]} Kf8 {[%emt 0:00:26]} 34. Kf2 {[%emt 0:00:33] [#]} (34. g4 $15) 34... f5 {[%emt 0:00:58] Black is more active.} (34... Rc3 $1 $17 {Hoping for ...Rxe1.} 35. Rxe8+ Kxe8) 35. Rxe3 {[%emt 0:00:56]} Rxe3 {[%emt 0:00:02] KR-KR} 36. Re1 {[%emt 0:01:45] [#] Black converts the advantage convincingly.} ({Better is} 36. b4 $1 $15) 36... Rc3 $1 $19 {[%emt 0:00:04]} 37. Re2 {[%emt 0:00:22]} Kf7 {[%emt 0:00:18]} 38. a4 {[%emt 0:00:34]} (38. Kf1 {was called for.}) 38... a5 {[%emt 0:00:24]} 39. g4 $2 {[%emt 0:00:19]} (39. Kf1 {is a better defense.}) 39... fxg4 {[%emt 0:00:14]} 40. hxg4 {[%emt 0:00:01]} Kf6 {[%emt 0:00:06]} 41. Kf1 {[%emt 0:00:49]} (41. Ke1 $142 Kg5 42. Kd1) 41... Kg5 {[%emt 0:00:17] Black is clearly winning.} 42. Re7 {[%emt 0:00:16]} g6 {[%emt 0:01:02]} 43. Ra7 {[%emt 0:00:02]} Rxc2 {[%emt 0:00:07]} 44. Rxa5 {[%emt 0:00:01]} Kf4 {[%emt 0:01:16]} 45. Ra6 {[%emt 0:00:08]} d3 {[%emt 0:01:33][%cal Bd4d3,Bd3d2][%mdl 32]} 46. Rd6 {[%emt 0:00:36]} Ke3 {[%emt 0:00:11][%cal Rc2c1]} 47. Re6+ {[%emt 0:00:12]} Kd4 {[%emt 0:00:17]} 48. a5 {[%emt 0:02:56]} Rc1+ {[%emt 0:00:30]} 49. Kf2 {[%emt 0:00:02]} d2 {[%emt 0:00:11]} 50. Rd6+ {[%emt 0:00:18]} Kc3 {[%emt 0:00:03] Weighted Error Value: White=0.59/Black=0.23 (precise)} 0-1

[Event "Slovakia Open 2022"]
[Site "Bratislava"]
[Date "2022.10.02"]
[Round "8.18"]
[White "Rakhmangulova, Anastasiya"]
[Black "Bombek, Peter"]
[Result "1-0"]
[ECO "C09"]
[WhiteElo "2244"]
[BlackElo "2083"]
[Annotator "TA"]
[PlyCount "53"]
[EventDate "2022.09.30"]
[EventCountry "SVK"]
[SourceTitle "playchess.com"]
[Source "ChessBase"]
[SourceQuality "1"]
[TimeControl "2700+10"]

{[%evp 11,53,25,20,20,22,17,15,22,17,0,11,12,34,24,65,56,51,54,51,50,51,28,34,0,79,85,214,213,205,192,192,208,194,187,190,207,208,169,195,188,244,237,242,239]} 1. e4 {[%emt 0:00:05]} e6 {[%emt 0:00:27]} 2. d4 {[%emt 0:00:02]} d5 {[%emt 0:00:05]} 3. Nd2 {[%emt 0:00:07]} c5 {[%emt 0:00:06]} 4. Ngf3 {[%emt 0:00:05]} Nc6 {[%emt 0:00:08]} 5. exd5 {[%emt 0:00:03]} exd5 {[%emt 0:00:03]} 6. Bb5 {[%emt 0:00:05]} Qe7+ {[%emt 0:00:10] is currently scoring better than 6...Bd6.} 7. Qe2 {[%emt 0:00:17] C09: French Tarrasch: 3...c5 4 exd5 exd5 5 Ngf3 Nc6.} Qxe2+ {[%emt 0:00:09]} 8. Kxe2 {[%emt 0:00:02]} a6 {[%emt 0:00:16]} 9. Bxc6+ {[%emt 0:00:15] The position is equal.} bxc6 {[%emt 0:00:01]} 10. dxc5 {[%emt 0:00:16]} Bxc5 {[%emt 0:00:04]} 11. Nb3 {[%emt 0:00:05]} Bb6 {[%emt 0:03:49]} 12. Be3 {[%emt 0:00:12] [#] Prevents c5.} Rb8 $146 {[%emt 0:01:56]} ({Predecessor:} 12... Bxe3 13. Kxe3 Nh6 14. Rhe1 O-O 15. Kd2 Ng4 16. Re2 Nf6 17. Ne5 Ne4+ 18. Ke1 Bb7 {1-0 (56) Novkovic,J (2119)-Katter,K (1826) Austria 2019}) 13. Rhe1 {[%emt 0:01:44]} f6 {[%emt 0:01:11]} 14. Kd2 {[%emt 0:04:57]} Kf7 {[%emt 0:01:42]} 15. Bxb6 {[%emt 0:00:26]} Rxb6 {[%emt 0:00:03]} 16. a4 {[%emt 0:00:24]} Ne7 {[%emt 0:04:40]} 17. a5 {[%emt 0:00:32]} Rb8 {[%emt 0:00:41]} (17... Rb4 $11) 18. Nfd4 $36 {[%emt 0:00:08][%cal Oe1e7][%mdl 2048] Strongly threatening Rxe7+! White is really pushing. White is more active.} Re8 {[%emt 0:12:40] [#] A mistake that costs the game.} (18... Nf5 $16 {is a better defense.}) 19. Rxe7+ $1 $18 {[%emt 0:03:12][%mdl 512] White is clearly better.} Rxe7 {[%emt 0:00:21]} 20. Nxc6 {[%emt 0:00:03]} Rb5 {[%emt 0:03:37]} 21. Nxe7 {[%emt 0:00:28]} Kxe7 {[%emt 0:00:02][%mdl 4096] Endgame KRB-KRN} 22. Re1+ {[%emt 0:00:38]} Kf7 {[%emt 0:01:45]} 23. Re3 {[%emt 0:00:52] Hoping for Rc3.} d4 {[%emt 0:05:44]} 24. Rd3 {[%emt 0:02:01]} Be6 {[%emt 0:00:03]} 25. Nxd4 {[%emt 0:00:06]} ({Don't play} 25. Rxd4 $6 Bxb3 26. cxb3 Rxa5 $16) 25... Rxb2 {[%emt 0:00:08]} (25... Rxa5 {keeps fighting.} 26. Rc3 Rd5) 26. Nxe6 {[%emt 0:00:10]} Kxe6 {[%emt 0:00:01] [#]} 27. Rb3 $1 {[%emt 0:00:25] Weighted Error Value: White=0.07 (flawless) /Black=0.23 (precise)} 1-0

[Event "Slovakia Open 2022"]
[Site "Bratislava"]
[Date "2022.10.02"]
[Round "8.19"]
[White "Pasti, Zsombor"]
[Black "Kijac, Miroslav"]
[Result "1-0"]
[ECO "C01"]
[WhiteElo "1884"]
[BlackElo "2078"]
[Annotator "TA"]
[PlyCount "117"]
[EventDate "2022.09.30"]
[EventCountry "SVK"]
[SourceTitle "playchess.com"]
[Source "ChessBase"]
[SourceQuality "1"]
[TimeControl "2700+10"]

{[%evp 14,117,16,0,49,52,191,124,122,114,149,104,104,102,137,109,102,87,303,184,222,90,191,44,47,59,101,30,44,45,44,-18,-7,-65,-44,-58,-45,-56,-38,-43,0,-3,15,7,15,-2,0,6,35,31,52,0,0,0,144,31,2314,517,510,510,1403,487,29975,1372,5002,1204,1173,273,287,302,306,298,244,254,335,320,377,360,469,328,1294,1250,1132,961,955,659,958,911,1204,1040,1025,929,2712,2577,29968,29969,29967,29969,29970,1834,29987,29984,29991,29992,29992,29993]} 1. e4 {[%emt 0:00:07]} e6 {[%emt 0:00:08]} 2. d4 {[%emt 0:00:02]} d5 {[%emt 0:00:04]} 3. exd5 {[%emt 0:00:04]} exd5 {[%emt 0:00:02]} 4. Bd3 {[%emt 0:00:02]} c5 {[%emt 0:00:09]} 5. dxc5 {[%emt 0:00:13]} Bxc5 {[%emt 0:00:02]} 6. Nf3 {[%emt 0:00:03]} Nf6 {[%emt 0:00:06]} 7. O-O {[%emt 0:00:04]} O-O {[%emt 0:00:02]} 8. Bg5 {[%emt 0:00:02]} Qb6 {[%emt 0:01:49] C01: French: Exchange Variation.} (8... h6 $11 {deserves consideration.} 9. Bh4 g5) 9. Nc3 $14 {[%emt 0:01:03]} Qd6 {[%emt 0:06:18] [#]} (9... Nbd7 $14) 10. Bxf6 $146 {[%emt 0:00:08]} (10. Nb5 $1 $18 {[%cal Rb5d6]} Qc6 11. Bxf6) ({Predecessor:} 10. Na4 Bb4 11. a3 Ba5 12. b4 Bc7 13. Bh4 Qc6 14. Nc5 Bg4 15. h3 Bh5 16. g4 {0-1 (32) Lindner,R (1391)-Bluebaum,J (1542) Willingen 2005}) 10... Qxf6 $16 {[%emt 0:00:21] White is better.} 11. Nxd5 {[%emt 0:00:09]} Qd6 {[%emt 0:00:21]} 12. Re1 {[%emt 0:00:52]} Nc6 {[%emt 0:00:05] Inhibits Ne7+.} 13. Nc3 {[%emt 0:00:33] And now Ne4 would win.} Bg4 {[%emt 0:00:32]} 14. Ne4 {[%emt 0:00:18]} Qe7 {[%emt 0:01:01]} 15. Neg5 {[%emt 0:02:23]} Qc7 {[%emt 0:00:00]} (15... Bxf3 $16 16. Nxf3 (16. Bxh7+ Kh8 $16) 16... Qf6) 16. Bxh7+ $18 {[%emt 0:00:10]} Kh8 {[%emt 0:00:01]} 17. h3 {[%emt 0:00:09]} (17. Qd5 $18 {and White stays clearly on top.} Ne7 18. Nxf7+ Kxh7 19. N3g5+ (19. Qe4+ Kg8 $16) 19... Kg8 20. Rxe7 $1 {[%mdl 512]} Qxe7 21. Ne5+ Be6 22. Nxe6 (22. Qxe6+ Qxe6 23. Nxe6 Bxf2+ 24. Kf1 Rf6 $15) 22... Bxf2+ 23. Kh1) 17... Rad8 {[%emt 0:00:21]} (17... Qg3 $16 {was called for.} 18. Ne4 (18. hxg4 Bxf2+ 19. Kf1 Bxe1 $16) 18... Bxf3 19. Nxg3 (19. Qxf3 Qxf3 20. gxf3 Be7 $17) 19... Bxd1) 18. Qe2 {[%emt 0:01:08]} (18. hxg4 Rxd1 19. Raxd1 Qb6 $17) (18. Bd3 $18 Bh5 19. Qe2) 18... Nd4 $1 $14 {[%emt 0:00:33]} 19. Qe5 {[%emt 0:02:16]} Bd6 {[%emt 0:12:20] This bishop pair is nice.} 20. Qxd4 {[%emt 0:01:15]} (20. Qe4 $1 $16 {[%cal Re4g4]} Bxf3 21. Qh4 (21. gxf3 Bf4 $17) (21. Nxf3 Nxf3+ 22. gxf3 g6 $17) 21... Bh2+ 22. Kf1) 20... Bh2+ $1 $11 {[%emt 0:00:24][%mdl 64] Discovered Attack} 21. Nxh2 {[%emt 0:00:03]} Rxd4 {[%emt 0:00:09]} 22. Nxg4 {[%emt 0:00:02]} (22. hxg4 $14 Qd8 23. Be4 $1 Qxg5 24. Nf3) 22... Rd5 {[%emt 0:10:52]} 23. Ne4 {[%emt 0:04:07]} (23. h4 $11 Rxg5 24. hxg5 Kxh7 25. Ne3) 23... Rh5 {[%emt 0:01:29]} ({Reject} 23... Kxh7 {[#]} 24. Ngf6+ $1 gxf6 25. Nxf6+ Kg7 26. Nxd5 $11) (23... Ra5 $5 {[%cal Rh8h7]} 24. Bg6 (24. b4 Rh5 $17) 24... fxg6 $15) 24. Nef6 {[%emt 0:02:18]} gxf6 {[%emt 0:00:22]} 25. Bd3 {[%emt 0:00:09]} Kg7 {[%emt 0:01:23]} 26. Re3 {[%emt 0:01:45][%cal Be1e3,Be3f3,Bf3f6][%mdl 32]} Rg5 {[%emt 0:01:25]} 27. Rf3 {[%emt 0:00:16]} Qb6 {[%emt 0:01:12]} 28. b3 {[%emt 0:00:48][%mdl 1024] White has compensation.} Qc6 {[%emt 0:01:29]} 29. Kf1 {[%emt 0:02:11]} Qd6 {[%emt 0:00:57]} 30. Re1 {[%emt 0:01:12]} Rh8 {[%emt 0:03:34][%cal Og5g4]} 31. Rxf6 {[%emt 0:01:33]} Qb4 {[%emt 0:00:10]} 32. Bc4 {[%emt 0:00:10]} (32. Re4 $1 $14 Qd2 33. Rf3) 32... Rxg4 $1 {[%emt 0:00:10]} 33. Rxf7+ {[%emt 0:00:44]} Kh6 {[%emt 0:00:43] White leaves nothing to chance now.} (33... Kg6 $11 34. Rfe7 (34. c3 $2 Qxc3 35. Rf3 Rxc4 $19) 34... Rd4) 34. hxg4 {[%emt 0:00:31] Dancing on a razor blade. White is more active.} ({White should try} 34. a3 $16 Qxe1+ 35. Kxe1 Rxg2 36. Rxb7) 34... Kg5 $2 {[%emt 0:00:10][%mdl 8192]} (34... Kg6 $14 35. Re3 (35. Rd1 $2 Rh1+ 36. Ke2 Rxd1 $17) 35... Rh1+ 36. Ke2 Re1+ 37. Kf3 Rxe3+ 38. fxe3 Qd6) 35. Re5+ {[%emt 0:02:09]} (35. f4+ $142 Kg6 36. Ree7 Qxe7 37. Rxe7) 35... Kg6 $18 {[%emt 0:00:32] Strongly threatening ...Rh1+.} 36. Kg1 {[%emt 0:01:00] Prevents Rh1+.} Qc3 {[%emt 0:00:07]} (36... Qxc4 $142 37. bxc4 Kxf7) 37. Re6+ {[%emt 0:00:38]} (37. Rfe7 $142 {Bd3+ would kill now.} Rd8 38. Bd3+ Rxd3 39. cxd3) 37... Kg5 {[%emt 0:00:01]} (37... Kxf7 $18 38. Re3+ Qxc4 39. bxc4 Rc8) 38. Rfe7 {[%emt 0:03:46]} (38. Rf5+ $142 Kxg4 39. Rd5 Qa1+ 40. Bf1 Rh1+ 41. Kxh1 Qxf1+ 42. Kh2 Qxf2 43. Re4+ Qf4+ 44. Rxf4+ Kxf4 45. Kh3) 38... Kxg4 {[%emt 0:00:28]} 39. Re4+ {[%emt 0:02:46]} (39. Bd3 $142 Qa1+ 40. Re1 Qxe1+ 41. Rxe1) 39... Kf5 {[%emt 0:00:10]} 40. R7e5+ $2 {[%emt 0:00:02]} (40. Bd3 {Intending R4e5+ and mate.} Kf6 41. R4e6+ Kg5 42. g3 Qa1+ 43. Re1) 40... Qxe5 {[%emt 0:00:01]} 41. Rxe5+ {[%emt 0:01:11]} Kxe5 {[%emt 0:00:10][%mdl 4096] Endgame KR-KB} 42. g3 {[%emt 0:00:10]} Rd8 {[%emt 0:00:10]} 43. Bd3 {[%emt 0:00:10]} Kf6 {[%emt 0:00:27]} 44. Kg2 {[%emt 0:00:02]} Re8 {[%emt 0:00:02]} 45. f4 {[%emt 0:00:03]} a5 {[%emt 0:00:18]} 46. a4 {[%emt 0:00:08] g4 is the strong threat.} Re1 $2 {[%emt 0:00:02]} (46... Kg7 47. g4 Kh6) 47. g4 {[%emt 0:00:14]} Re3 {[%emt 0:00:01]} 48. Kf2 {[%emt 0:00:08]} Rh3 {[%emt 0:00:11]} 49. Bf1 {[%emt 0:00:38]} Rc3 {[%emt 0:00:00]} 50. Bd3 {[%emt 0:00:02]} Rc8 {[%emt 0:00:10]} 51. Kg3 {[%emt 0:00:05] Threatens to win with g5+.} Re8 {[%emt 0:00:10]} 52. g5+ {[%emt 0:00:04]} Kg7 {[%emt 0:00:01]} 53. f5 {[%emt 0:00:08][%cal Bf4f5,Bf5f6][%mdl 32]} Rd8 {[%emt 0:00:11]} 54. f6+ {[%emt 0:00:13]} Kf7 {[%emt 0:00:10]} 55. Kf4 {[%emt 0:00:05]} Rd4+ {[%emt 0:00:00]} 56. Be4 {[%emt 0:00:03]} (56. Ke5 $142 Rg4 57. g6+ Kf8 58. g7+ Rxg7 59. fxg7+ Kxg7 60. c4 b6 61. Kd6) 56... Rb4 {[%emt 0:00:04]} 57. Kf5 {[%emt 0:00:15] White mates.} b5 {[%emt 0:00:05]} 58. g6+ {[%emt 0:00:01][%cal Bg5g6,Bg6g7][%mdl 32]} Kf8 {[%emt 0:00:00]} 59. g7+ {[%emt 0:00:01] Weighted Error Value: White=0.76/Black=0.48} 1-0

[Event "Slovakia Open 2022"]
[Site "Bratislava"]
[Date "2022.10.02"]
[Round "8.20"]
[White "Sobek, Michal"]
[Black "Balint, Peter"]
[Result "0-1"]
[ECO "B40"]
[WhiteElo "2156"]
[BlackElo "2235"]
[Annotator "TA"]
[PlyCount "82"]
[EventDate "2022.09.30"]
[EventCountry "SVK"]
[SourceTitle "playchess.com"]
[Source "ChessBase"]
[SourceQuality "1"]
[TimeControl "2700+10"]

{[%evp 9,82,8,17,20,14,16,22,41,42,38,55,41,60,55,63,37,67,66,75,83,101,102,117,90,99,17,21,0,35,33,39,37,52,33,43,-58,0,0,51,-15,-32,-18,0,0,0,-196,-210,-1605,-1594,-1662,-1804,-1729,-1737,-1500,-607,-1628,-1538,-1338,-1303,-1303,-1244,-1325,-1173,-1303,-1016,-29971,-29972,-29971,-29972,-29982,-29983,-29987,-29988,-29988,-29989]} 1. e4 {[%emt 0:01:38]} c5 {[%emt 0:00:06]} 2. Nf3 {[%emt 0:00:03]} e6 {[%emt 0:00:02]} 3. b3 {[%emt 0:00:03]} Nc6 {[%emt 0:00:15]} 4. Bb2 {[%emt 0:00:11]} d5 {[%emt 0:00:07]} 5. exd5 {[%emt 0:00:03]} exd5 {[%emt 0:00:11]} 6. Bb5 {[%emt 0:00:13] B40: Sicilian: 2...e6, Unusual lines.} Nf6 {[%emt 0:00:13]} 7. Qe2+ {[%emt 0:01:10]} Be6 {[%emt 0:01:55]} 8. Ng5 {[%emt 0:01:42] The position is equal.} Qd7 {[%emt 0:00:58]} 9. O-O {[%emt 0:00:55]} O-O-O {[%emt 0:01:14]} 10. Nxe6 {[%emt 0:00:04]} fxe6 {[%emt 0:00:06]} 11. Re1 {[%emt 0:00:32]} Re8 {[%emt 0:00:56] [#]} 12. d4 $146 {[%emt 0:00:24]} ({Predecessor:} 12. d3 Bd6 13. c4 Rhf8 14. Nd2 a6 15. Bxc6 Qxc6 16. Nf3 Bf4 17. Be5 Bh6 18. Bg3 {½-½ (46) Finneran,M (2024)-Shvartsman,A (2192) Irvine 2010}) 12... a6 {[%emt 0:00:28]} 13. Bxc6 {[%emt 0:00:02]} Qxc6 {[%emt 0:00:01]} 14. Nd2 {[%emt 0:00:21]} Kb8 {[%emt 0:01:59]} 15. Nf3 {[%emt 0:00:44]} Bd6 {[%emt 0:04:58]} 16. Ne5 {[%emt 0:00:41]} Qc7 {[%emt 0:00:08]} 17. Ba3 {[%emt 0:01:30]} (17. dxc5 $16 Bxc5 18. c4) 17... Ne4 $11 {[%emt 0:01:31]} (17... cxd4 $2 18. Bxd6 Qxd6 19. Nf7 $18) 18. Qd3 {[%emt 0:05:58]} g5 {[%emt 0:09:32]} 19. f3 {[%emt 0:02:31]} cxd4 {[%emt 0:00:36]} 20. Bxd6 {[%emt 0:00:10]} Nxd6 {[%emt 0:00:02]} 21. Qxd4 {[%emt 0:01:19]} Nf5 {[%emt 0:00:09]} 22. Qa4 {[%emt 0:01:45]} (22. Qd2 $14) 22... h5 {[%emt 0:03:02]} ({Black should play} 22... Qc3 $1 $15) 23. c4 $1 {[%emt 0:01:32]} Ka7 {[%emt 0:02:06]} (23... Qb6+ $11 24. Kh1 Qf2 25. Nd7+ Ka8) 24. Rac1 {[%emt 0:01:37]} (24. Qb4 $14) 24... Qc5+ {[%emt 0:00:53]} 25. Kh1 {[%emt 0:00:04]} g4 {[%emt 0:04:39] And now ...h4 would win.} 26. cxd5 {[%emt 0:03:50]} Qb6 {[%emt 0:04:38] Hoping for ...h4.} 27. Qf4 $2 {[%emt 0:07:00] [#] Black converts the advantage convincingly.} (27. Qc4 $11) 27... h4 $1 $19 {[%emt 0:01:46][%cal Of5g3,Bh5h4,Bh4g3][%mdl 32]} 28. Nc4 $2 {[%emt 0:05:44]} ({Not} 28. Nxg4 $2 {[#]} Ng3+ $1 {[%mdl 512]} 29. Qxg3 hxg3 $19) (28. h3 gxh3 29. Rc2) 28... Qf2 {[%emt 0:00:39][%cal Of5g3] ( -> ...Ng3+!)} 29. Rf1 {[%emt 0:00:50] [#]} Ng3+ $1 {[%emt 0:00:29][%mdl 512]} 30. Qxg3 {[%emt 0:00:03]} hxg3 {[%emt 0:00:02][%csl Gg3][%cal Rh8h2]} 31. Rxf2 {[%emt 0:00:01]} Rxh2+ {[%emt 0:00:18]} 32. Kg1 {[%emt 0:00:09]} Reh8 {[%emt 0:00:05][%csl Gh8][%cal Rh2h1]} 33. Kf1 {[%emt 0:00:10]} Rh1+ {[%emt 0:00:05][%mdl 64] Skewer} 34. Ke2 {[%emt 0:00:03]} Rxc1 {[%emt 0:00:03]} 35. Rf1 {[%emt 0:00:04]} Rxf1 {[%emt 0:00:24]} 36. Kxf1 {[%emt 0:00:06]} exd5 {[%emt 0:00:01][%cal Be6d5,Bd5d4,Bd4d3,Bd3d2][%mdl 32] KR-KN} 37. Ne3 {[%emt 0:00:10]} gxf3 {[%emt 0:00:04] Black mates.} 38. gxf3 {[%emt 0:00:02]} d4 {[%emt 0:00:10]} 39. Ng4 {[%emt 0:00:16]} d3 {[%emt 0:00:00]} 40. Kg2 {[%emt 0:00:21]} d2 {[%emt 0:00:00]} 41. Ne3 {[%emt 0:00:01]} Re8 {[%emt 0:00:08] Weighted Error Value: White=0.60/Black=0.08 (flawless)} 0-1